Cogmind - Beta 13 @@@ ROGUE MODE // 2024.05.02 @ 00:18:35 Player: Alphabethead Result: Destroyed by G-34 Mercenary with Small Laser Performance ------------- Evolutions (0) 0 Regions Visited (2) 400 Robots Destroyed (17) 85 Value Destroyed (413) 413 Prototype IDs (0) 0 Alien Tech Used (0) 0 Bonus (0) 0 TOTAL SCORE: 898 Bonus ------- None Cogmind --------- Core Integrity 0/250 Matter 300/300 Energy 198/200 System Corruption 0% Temperature Cool (6) Movement Rolling (90) Location -10/Subcaves Parts ------- > --- POWER (1) -------- Subdweller Power Source > --- PROPULSION (2) --- Wheel Compact Wheel > --- UTILITY (2) ------ Small Storage Unit Structural Scanner > --- WEAPON (2) ------- Beam Cannon Light Cannon > --- INVENTORY (8) ---- Subdweller Power Source Subdweller Monowheel Subdweller Monowheel ECM Suite Beam Cannon Mining Laser Scrap Shield Fragment (48) Peak State ------------ > --- POWER ------------ Makeshift Power Source > --- PROPULSION ------- Wheel Wheel > --- UTILITY ---------- Small Storage Unit Structural Scanner > --- WEAPON ----------- Beam Cannon Light Cannon > --- INVENTORY -------- Ion Engine Compact Wheel Compact Wheel ECM Suite Beam Cannon Light Cannon Mining Laser Scrap Shield Fragment [Rating: 10] Favorites ----------- Power Ion Engine Engine Ion Engine Propulsion Wheel Wheel Wheel Utility Small Storage Unit Device Structural Scanner Storage Small Storage Unit Weapon Light Assault Rifle Energy Cannon Beam Cannon Ballistic Gun Light Assault Rifle Ballistic Cannon Light Cannon Special Weapon Mining Laser Build | -11 -10 -10 ------- Run | Yrd Mat Sub Slots Evolved . | . . . Power . | . . . Propulsion . | . . . Utility . | . . . Weapon . | . . . Parts Attached 25 | 8 8 9 Power 4 | 1 . 3 Engine 4 | 1 . 3 Core . | . . . Reactor . | . . . Propulsion 9 | 4 . 5 Treads . | . . . Leg . | . . . Wheel 9 | 4 . 5 Hover . | . . . Flight . | . . . Utility 2 | 1 1 . Device 1 | . 1 . Storage 1 | 1 . . Processor . | . . . Hackware . | . . . Protection . | . . . Artifact . | . . . Weapon 10 | 2 7 1 Energy Gun . | . . . Energy Cannon 1 | . 1 . Ballistic Gun 3 | 2 1 . Ballistic Cannon 4 | . 3 1 Launcher . | . . . Special Weapon 2 | . 2 . Impact Weapon . | . . . Slashing Weapon . | . . . Piercing Weapon . | . . . Special Melee Weapon . | . . . Unidentified Prototypes . | . . . Parts Lost 4 | . . 4 Power 1 | . . 1 Propulsion 2 | . . 2 Utility . | . . . Weapon 1 | . . 1 Highest Loss Streak 3 | . . 3 To Critical Strikes . | . . . Average Slot Usage (%) 99 | . 99 97 Engine 14 | . 14 14 Wheel 27 | . 28 26 Device 13 | . 13 14 Storage 14 | . 14 14 Energy Cannon 8 | . 5 14 Ballistic Gun 11 | . 15 . Ballistic Cannon 7 | . 4 13 Special Weapon 1 | . 1 . Naked Turns . | . . . Heaviest Build 17 | 12 17 17 Greatest Support 36 | 32 20 36 Greatest Overweight (x) 2 | 2 . 1 Average Overweight (x) . | . . . Largest Inventory Capacity 8 | 8 8 8 Average Capacity 7 | 7 8 8 Most Carried 8 | 8 8 8 Average Carried 6 | 3 6 6 Final Capacity 8 | 8 8 8 Final Carried 7 | 5 7 7 Class Distribution -------------------- 100% | Mutant Dominant Class ---------------- Mutant | -10/Materials Mutant | -10/Subcaves Resources | -11 -10 -10 ----------- Run | Yrd Mat Sub Matter Collected 586 | 314 46 226 Remotely . | . . . Salvage Created 627 | 148 195 284 Parts 38 | 9 10 19 Haulers Intercepted . | . . . Recyclers Shooed 1 | . 1 . Parts Field Recycled . | . . . Retrieved Matter . | . . . Parts Self-Destructed 5 | . . 5 Prevented . | . . . Kills | -11 -10 -10 ------- Run | Yrd Mat Sub Combat Hostiles Destroyed 12 | . 5 7 Guns 5 | . 5 . Cannons 7 | . . 7 Classes Destroyed 6 | 3 2 1 Worker 1 | 1 . . Tunneler 2 | 2 . . Recycler 2 | 1 1 . Swarmer 3 | . 3 . Grunt 5 | . 2 3 Subdweller 4 | . . 4 Best Kill Streak 4 | 2 4 3 Combat Bots Only 3 | . 3 3 Max Kills in Single Turn 1 | 1 1 1 Gunslinging . | . . . Exploded . | . . . Melee . | . . . Uniques/NPCs Destroyed . | . . . Combat | -11 -10 -10 -------- Run | Yrd Mat Sub Hostile Shots Fired 82 | . 34 48 Missed 23 | . 10 13 Damage Taken 809 | . 213 596 Core 251 | . 66 185 Absorbed by Shields . | . . . Core Remaining (%) 100 | 100 . . Volleys Fired 65 | 17 26 22 Largest 2 | 2 2 2 Hottest 100 | 40 100 95 Shots Fired 122 | 34 45 43 Gun 72 | 34 38 . Cannon 43 | . . 43 Launcher . | . . . Special 7 | . 7 . Kinetic 93 | 34 38 21 Thermal 29 | . 7 22 Explosive . | . . . Electromagnetic . | . . . Robot Hit Streak 10 | 6 6 10 Robot Miss Streak 4 | 2 4 3 Penetration Max . | . . . Secondary Targets . | . . . Shots Hit Robots 75 | 21 21 33 Core Hits 30 | 8 11 11 Critical Kills . | . . . Critical Parts Destroyed . | . . . Critical Strikes 1 | . . 1 Blast 1 | . . 1 Melee Attacks . | . . . Impact . | . . . Slashing . | . . . Piercing . | . . . Sneak Attacks . | . . . Combat Hostiles . | . . . Follow-up Attacks . | . . . Damage Inflicted 939 | 163 185 591 Guns 348 | 163 185 . Cannons 591 | . . 591 Explosions . | . . . Melee . | . . . Ramming . | . . . Kinetic 620 | 163 185 272 Thermal 319 | . . 319 Explosive . | . . . Electromagnetic . | . . . Impact . | . . . Slashing . | . . . Piercing . | . . . Highest Corruption . | . . . Average Corruption . | . . . Corruption Purged . | . . . Corruption Blocked . | . . . Overload Shots . | . . . Overflow Damage . | . . . Projectiles . | . . . Explosions . | . . . Melee . | . . . Knockbacks 7 | . . 7 Impact . | . . . Kinetic 7 | . . 7 Secondary . | . . . Self-Inflicted Damage . | . . . Shots . | . . . Rammed . | . . . Targets Rammed . | . . . Kicked . | . . . Crushed . | . . . Highest Temperature 60 | . 60 24 Average Temperature 21 | . 26 10 Received Heat Transfer 297 | . 36 261 Siege Activations . | . . . Robots Corrupted . | . . . Combat Hostiles . | . . . Parts Fried . | . . . Impact Corruptions . | . . . Robots Melted . | . . . Combat Hostiles . | . . . Parts Melted . | . . . Heat Transferred 666 | . . 666 Parts Sabotaged . | . . . Parts Stolen . | . . . Parts Stripped . | . . . Power Chain Reactions . | . . . Alert | -11 -10 -10 ------- Run | Yrd Mat Sub Peak Influence 196 | 20 196 . Initial 13 | . 13 . Average 28 | 8 32 . Maximum Alert Level . | . . . Low Security (%) 100 | 100 100 . Level 1 . | . . . Level 2 . | . . . Level 3 . | . . . Level 4 . | . . . Level 5 . | . . . High Security . | . . . Max Security . | . . . Squads Dispatched . | . . . Investigation . | . . . Extermination . | . . . Reinforcement . | . . . Assault . | . . . Garrison . | . . . Intercept . | . . . Searches Triggered . | . . . Construction Impeded . | . . . Haulers Reinforced . | . . . Active Scanning Responses . | . . . Cargo Convoy Interrupts . | . . . Stealth | -11 -10 -10 --------- Run | Yrd Mat Sub Distress Signals . | . . . Communications Jammed . | . . . Distress Signals . | . . . Times Spotted 20 | . 10 10 Peak Tracking Total 4 | . 3 4 Tactical Retreats 1 | . 1 . Traps | -11 -10 -10 ------- Run | Yrd Mat Sub Traps Triggered . | . . . Indirectly . | . . . Trap Hack Attempts . | . . . Triggered . | . . . Disarmed . | . . . Reprogrammed . | . . . Reused . | . . . Traps Extracted . | . . . Installed . | . . . Triggered . | . . . Machines | -11 -10 -10 ---------- Run | Yrd Mat Sub Machines Disabled . | . . . Max in Single Turn . | . . . Machines Repaired . | . . . Machines Dismantled . | . . . Machines Sabotaged . | . . . Overloaded Fab Kills . | . . . Hacking | -11 -10 -10 --------- Run | Yrd Mat Sub Machines Accessed 2 | . 2 . Terminals 2 | . 2 . Fabricators . | . . . Repair Stations . | . . . Recycling Units . | . . . Scanalyzers . | . . . Garrison Access . | . . . Total Hacks 6 | . 6 . Successful 5 | . 5 . Failed 1 | . 1 . Catastrophic . | . . . Database Lockouts . | . . . Manual . | . . . Terminals 6 | . 6 . Fabricators . | . . . Repair Stations . | . . . Recycling Units . | . . . Scanalyzers . | . . . Garrison Access . | . . . Terminal Hacks 5 | . 5 . Robot Analysis 1 | . 1 . Level Access Points 1 | . 1 . Dispatch Records 2 | . 2 . Zone Layout 1 | . 1 . Fabricator Hacks . | . . . Repair Station Hacks . | . . . Recycling Unit Hacks . | . . . Scanalyzer . | . . . Garrison Access Hacks . | . . . Unauthorized Hacks . | . . . Terminals . | . . . Fabricators . | . . . Repair Stations . | . . . Recycling Units . | . . . Scanalyzers . | . . . Garrison Access . | . . . Data Cores Recovered . | . . . Used . | . . . Hacking Detections 2 | . 2 . Full Trace Events . | . . . Feedback Events . | . . . Feedback Blocked . | . . . Robot Schematics Acquired . | . . . Robots Built . | . . . Authchips . | . . . Time . | . . . Total Robot Build Rating . | . . . Part Schematics Acquired . | . . . Parts Built . | . . . Authchips . | . . . Time . | . . . Total Part Build Rating . | . . . Parts Repaired . | . . . Time . | . . . Parts Recycled . | . . . Recycled Matter . | . . . Retrieved Matter . | . . . Retrieved Components . | . . . Parts Scanalyzed . | . . . Part Schematics Acquired . | . . . Parts Damaged . | . . . Bothacking | -11 -10 -10 ------------ Run | Yrd Mat Sub Used RIF Installer . | . . . Robots Hacked . | . . . Non-combat . | . . . Combat . | . . . Robot Hacks Applied . | . . . Relay Couplers Released . | . . . Fabnet Peak Effective % . | . . . Robots Rewired . | . . . Allies Hacked . | . . . Hacks Repelled . | . . . Allies | -11 -10 -10 -------- Run | Yrd Mat Sub Total Allies . | . . . Largest Group . | . . . Highest-Rated Group . | . . . Highest-Rated Ally . | . . . Total Orders . | . . . Ally Attacks . | . . . Total Damage . | . . . Kills . | . . . Allies Corrupted . | . . . Allies Melted . | . . . Intel | -11 -10 -10 ------- Run | Yrd Mat Sub Robot Analysis Total 1 | . 1 . Derelict Logs Recovered . | . . . Drone Launches . | . . . Drone Recoveries . | . . . Exploration | -11 -10 -10 ------------- Run | Yrd Mat Sub Turns Passed 1466 | 194 922 350 Spaces Moved 875 | 129 470 276 Core 10 | 10 . . Treads . | . . . Legs . | . . . Wheels 865 | 119 470 276 Hover . | . . . Flight . | . . . Fastest Speed 50 | 50 80 80 Average Speed 85 | 99 80 86 Slowest Speed 150 | 150 80 115 Overloaded Moves . | . . . Propulsion Burnouts . | . . . Robots Hopped . | . . . Cave-ins Triggered . | . . . Exploration Rate (%) 23 | 6 45 20 Regions Visited 2 Branch Regions 1 Pre-discovered Areas . | . . . Known Exits Taken . | . . . Unknown Exits Taken 2 | 1 1 . Scrap Searched . | . . . Spaces Dug . | . . . Terrain Destroyed . | . . . Melee . | . . . Projectile . | . . . AOE . | . . . Terrain Rammed . | . . . Walls Destroyed . | . . . Machines Disabled . | . . . Actions | -11 -10 -10 --------- Run | Yrd Mat Sub Total 1471 | 164 963 344 Wait 471 | . 446 25 Move 873 | 128 469 276 Hop . | . . . Pick Up 21 | 8 8 5 Fast Attach 9 | 6 1 2 Attach 3 | . . 3 Detach 1 | . . 1 Swap 13 | 2 7 4 Drop 15 | 3 6 6 Fire 65 | 17 26 22 Melee . | . . . Ram . | . . . Kick . | . . . Crush . | . . . Escape Stasis . | . . . Rewire . | . . . Trap . | . . . Miscellaneous . | . . . Route ------- -11/Scrapyard -10/Materials (discovered 4 exits: *Mat x3 / [*Sub]) -10/Subcaves History --------- Turn | Location | Event 14 | -11/Scrapyard | Discovered new exit (range 15) 195 | -11/Scrapyard | Entered Materials 316 | -10/Materials | Build established: Mutant 319 | -10/Materials | Discovered new exit (range 12) 586 | -10/Materials | Identified exit to Materials 673 | -10/Materials | Discovered new exit (range 10) 1117 | -10/Materials | Entered Subcaves 1129 | -10/Subcaves | A swath of the cavern ceiling suddenly collapsed 1292 | -10/Subcaves | Core integrity fell below 50% 1313 | -10/Subcaves | Lost 3 parts (1p2n) 1357 | -10/Subcaves | Core integrity fell below 20% 1467 | -10/Subcaves | Destroyed by G-34 Mercenary with Small Laser Last Messages --------------- 01368_ 0G-NMB(R) affixes Scrap Shield Fragment to Scrap Shield. 01369_ 0G-NMB(R) destroyed. 01374_ Acquired 31 matter. 01380_ Acquired Sub. Monowheel. 01401_ O5-TUT(R): "SUBMAD!" 01431_ O5-TUT(R) knocked back. 01434_ O5-TUT(R) destroyed. 01439_ Acquired Sub. Power Source. 01440_ Dropped Ion Engine. 01441_ Acquired 3 matter. 01443_ Acquired Sub. Monowheel. 01446_ Dropped Sub. Monowheel. 01448_ Dropped Com. Wheel. 01448_ Critical hit (Burn: +37). 01448_ Acquired 13 matter. 01458_ G-47 Trooper destroyed. 01463_ Lgt. Nuclear Core fries itself beyond repair. 01467_ Acquired 14 matter. Map ----- +----------------------------------------------------+ | ?????????????????????????????????????????????????? | | ?????????????????????????????????????????????????? | | ?????????????????????????????????????????????????? | | ?????????????????????????????????????????????????? | | ?????????????????????????????????????????????????? | | ?????????????????????????????????????????????????? | | ?????????????????????????????????????????????????? | | ?????????????????????????????????????????????????? | | ?????????????????????????????????????????????????? | | ?????????????????????????????????????????????????? | | ?????????????????????????????????????????????????? | | ?????????????????????????????????????????????????? | | ???????????????????????????"##???????????????????? | | ??????????????????????????? ###??????????????????? | | ??????????????????????????? ######??????????????? | | ??????????????????????????? ####"??????????????? | | ???????????????????????????? =""??????????????? | | ???????????????????????????? % ???????????????? | | ???????????????????????????# * ???????????????# | | ??????????????????????????### #######??????????# | | ??????????????????????????### ############# ??# | | ??????????????????????????## #### ##########?## | | ????????????????????? ###### ### ### ##### | | ???????????????????? ####### ## ##### | | ???????????????????? ## # # ## #### | | ????????????????????## @ ##?### #### | | ???????????????????? ## ## ####### ## # | | ????????????????????### ## == ###### | | ????????????????????## ## ###### | | ??????????????????##### ##* ######### | | ?????????????????##### *%&%& ######## #### | | ????????????????#### g !###& ### ### # # | | ????????###????#### % %#### * | | ????????###???#### ###### % | | ?????## ## ## ### %%% ## ### | | ?????##% #&&&[! #### ######## | | ?????## #### %%&[ % %#### ####### | | ????? ####??###### [%* ### ##??## | | ???????###?????######## ### ## ??### | | ????????????????############# ### #### | | ?????????????????????######## ###### ### | | ???????????????????????????######### ##### | | ???????????????????????????#####??## ###### | | ??????????????????????????????????## ###?# # | | ??????????????????????????????????### ##???## | | ??????????????????????????????????### ##???## | | ???????????????????????????????????## #????# | | ???????????????????????????????????## ???????# | | ?????????????????????????????????????????????????# | | ????????????????????????????????????????????????? | +----------------------------------------------------+ Best States ------------- Heat Dissipation 25 Energy Generation 15 Energy Capacity 250 Matter Stores 300 Matter Capacity 300 Sight Range 16 Terrain Scan Density 10 Evasion (%) 44 Item Schematics ----------------- None Robot Schematics ------------------ None Fabricated ------------ Nothing Alien Tech Used ----------------- None Achievements -------------- None Challenges ------------ None Game ------ Seed GuidedAntigravInsulator Manual? 0 Play Time 00:13:39 Cumulative 17.9 hours Start 2024.05.02 @ 00:06:20 End 2024.05.02 @ 00:18:35 Sessions 1 Manual Loads 0 Difficulty Rogue Special Mode None Game No. 31 Rogue 31 Adventurer 0 Explorer 0 Win Type - Total 0 Types 0/0/0/0/0/0/0/0/0 Lore% 19 Gallery% 20 Achievement% 18 Wizard Run 0 Options --------- Layout 1 ASCII 0 Keyboard 1 Movement Arrows Keybinds 0 Fullscreen 1 Font 24/Smallcaps Map View 50x35 Zoom Use 0% Tactical HUD 1 Map Filters NONE Filters NONE Steam 1 RUN: add5026b-19be-4905-8f66-50c36faa85ef